Posting Date,Expenditure Area,Supplier Name,Amount,Expense Type,Reason for Expense
30-Nov-20,Corporate Management Team,Absolute, 499.39 ,Specific Campaigns / Projects expenditure,Direct line funding - Bedding for East/West Villa
11-Nov-20,Corporate Management Team,Appliancedirect Co, 658.02 ,Specific Campaigns / Projects expenditure,"Direct line- Microwaves for Villas, for those in isolation."
06-Nov-20,Corporate Management Team,Argos Ltd, 58.33 ,Specific Campaigns / Projects expenditure,Kitchen items for direct line fund for villas
19-Nov-20,Corporate Management Team,Solace Group, 41.67 ,Subscriptions - Service Related,Membership for Solace
30-Sep-20,Culture & Environment Services,Amazon.Co.Uk, 374.98 ,Equipment / Furniture / Materials,Tablet for Supervisors
30-Sep-20,Culture & Environment Services,Amazon.Co.Uk, 562.47 ,Equipment / Furniture / Materials,Tablets for Supervisors
04-Nov-20,Culture & Environment Services,Amazon.Co.Uk, 23.32 ,Equipment / Furniture / Materials,coffee for Bearers
30-Nov-20,Culture & Environment Services,Amazon.Co.Uk, 23.32 ,Equipment / Furniture / Materials,Batteries for crem
04-Nov-20,Culture & Environment Services,Amazon.Co.Uk, 24.56 ,Stationery,Stationery for CHRISTCHURCH HUB
12-Nov-20,Culture & Environment Services,Amazon.Co.Uk, 3.32 ,Stationery,Stationery - CHRISTCHURCH HUB
12-Oct-20,Culture & Environment Services,Amz*amazon.Co.Uk,-1.87 ,Stationery,Refund for delayed service
12-Oct-20,Culture & Environment Services,Amz*townx(UK),-1.87 ,Stationery,Refund for delayed service
16-Oct-20,Culture & Environment Services,Amznmktplace, 21.12 ,Computer Consumables and other Minor IT costs,Phone cover and protector
10-Nov-20,Culture & Environment Services,Amznmktplace, 20.93 ,Computer Consumables and other Minor IT costs,TABLET CHARGES
17-Sep-20,Culture & Environment Services,Amznmktplace, 208.12 ,Equipment / Furniture / Materials,Tablets for Supervisor
29-Sep-20,Culture & Environment Services,Amznmktplace, 41.63 ,Equipment / Furniture / Materials,Cases for Supervisor tablets
29-Sep-20,Culture & Environment Services,Amznmktplace, 15.40 ,Equipment / Furniture / Materials,Cases for Supervisors tablets
09-Nov-20,Culture & Environment Services,Amznmktplace, 36.83 ,Equipment / Furniture / Materials,Adult defib pads
10-Nov-20,Culture & Environment Services,Amznmktplace, 4.57 ,Equipment / Furniture / Materials,Crem Log book 2021
11-Nov-20,Culture & Environment Services,Amznmktplace, 8.88 ,Equipment / Furniture / Materials,Crem Log book 2021
23-Nov-20,Culture & Environment Services,Amznmktplace, 21.22 ,Equipment / Furniture / Materials,Phone Cases  - Gravediggers
23-Nov-20,Culture & Environment Services,Amznmktplace, 1.67 ,Equipment / Furniture / Materials,Phone Cases  - Gravediggers
23-Nov-20,Culture & Environment Services,Amznmktplace, 12.06 ,Equipment / Furniture / Materials,Phone Cases  - Gravediggers
26-Nov-20,Culture & Environment Services,Amznmktplace, 6.66 ,Materials and Supplies - Miscellaneous,Whistles for PARK PATROL
27-Nov-20,Culture & Environment Services,Amznmktplace, 8.13 ,Stationery,office diaries for staff
30-Nov-20,Culture & Environment Services,Amznmktplace, 4.12 ,Stationery,office diaries for staff
06-Nov-20,Culture & Environment Services,Amznmktplace Amazon.Co.Uk, 5.60 ,Stationery,Stationery
06-Nov-20,Culture & Environment Services,Amznmktplace Amazon.Co.Uk, 69.50 ,Stationery,Stationery
20-Nov-20,Culture & Environment Services,B & Q 1315, 10.67 ,Equipment / Furniture / Materials,General Tools - PLAY AREA INSPECTOR
25-Nov-20,Culture & Environment Services,B & Q 1315, 24.08 ,Miscellaneous Stock  - Purchases,Material to repair Bramford Lane Gate - LANDSCAPE TEAM
09-Sep-20,Culture & Environment Services,B&m 591 - Carr Road, 9.41 ,Equipment / Furniture / Materials,Printer paper
10-Aug-20,Culture & Environment Services,Booker Limited Ipswich, 3.12 ,Catering/Beverages,Milk Jiggers for Shop Mo
21-Sep-20,Culture & Environment Services,Booker Limited Ipswich, 15.62 ,Catering/Beverages,Tea / Coffee for Corn Exchange
26-Oct-20,Culture & Environment Services,Booker Limited Ipswich, 51.09 ,Catering/Beverages,Tea / Coffee for police hire
26-Oct-20,Culture & Environment Services,Booker Limited Ipswich, 46.99 ,Catering/Beverages,Tea / Coffee for police hire
13-Nov-20,Culture & Environment Services,Bright Acres Tool Hire, 40.00 ,Miscellaneous Stock  - Purchases,Honda Rotovator - TOOKS SITE - Landscape Team
03-Nov-20,Culture & Environment Services,Bunzl Cleaning & Hygie, 120.76 ,Cleaning Supplies,"Blue roll, Tissues for chapel & Cleaning supplies"
13-Nov-20,Culture & Environment Services,Chainsdirect Ltd, 311.25 ,Materials and Supplies - Miscellaneous,Chain saw chains
06-Nov-20,Culture & Environment Services,Cpw Locksmiths And Securi, 43.33 ,Materials and Supplies - Miscellaneous,key cutting for bin stores
10-Nov-20,Culture & Environment Services,Cpw Locksmiths And Securi, 10.00 ,Materials and Supplies - Miscellaneous,2 x keys cut
25-Nov-20,Culture & Environment Services,Crocus.Co.Uk Ltd, 288.07 ,Materials and Supplies - Miscellaneous,Plants for Alexandra Park
03-Nov-20,Culture & Environment Services,Crystal Health Group Limi, 145.00 ,Equipment / Furniture / Materials,HR services
20-Nov-20,Culture & Environment Services,Defib Pad, 64.50 ,Equipment / Furniture / Materials,Junior defib pad
18-Nov-20,Culture & Environment Services,Defib Pad, 36.50 ,Materials and Supplies - Miscellaneous,Replacement Adult Defib Pads
29-Oct-20,Culture & Environment Services,Displaysense.Co.Uk, 102.50 ,Equipment / Furniture / Materials,Cornhill Fountain sign 
10-Nov-20,Culture & Environment Services,Dvla Vehicle Tax, 267.50 ,Direct Transport Costs,VEHICLE TAX FOR AV58 NXS
10-Nov-20,Culture & Environment Services,Dvla Vehicle Tax, 267.50 ,Direct Transport Costs,VEHICLE TAX FOR AY63 ZBO
10-Nov-20,Culture & Environment Services,Dvla Vehicle Tax, 267.50 ,Direct Transport Costs,VEHICLE TAX FOR AY63 ZBP
10-Nov-20,Culture & Environment Services,Dvla Vehicle Tax, 267.50 ,Direct Transport Costs,VEHICLE TAX FOR AY63 ZCF
10-Nov-20,Culture & Environment Services,Dvla Vehicle Tax, 267.50 ,Direct Transport Costs,VEHICLE TAX FOR AY63 ZCJ
10-Nov-20,Culture & Environment Services,Dvla Vehicle Tax, 562.50 ,Direct Transport Costs,VEHICLE TAX FOR LK69 BGV
10-Nov-20,Culture & Environment Services,Dvla Vehicle Tax, 267.50 ,Parks Vehicle Costs,VEHICLE TAX FOR AO64 PFU
10-Nov-20,Culture & Environment Services,Dvla Vehicle Tax, 267.50 ,Parks Vehicle Costs,VEHICLE TAX FOR FP58 JVF
16-Nov-20,Culture & Environment Services,Dvla Vehicle Tax, 267.50 ,Parks Vehicle Costs,VEHICLE TAX FOR FL58 LBP
23-Sep-20,Culture & Environment Services,Ebay O*18-05774-94964, 7.16 ,Equipment / Furniture / Materials,REDACTED
10-Nov-20,Culture & Environment Services,Gripfixings Ipswich, 182.64 ,Materials and Supplies - Miscellaneous,Material for Installation of benches - ORWELL QUAY
27-Nov-20,Culture & Environment Services,Halfords 0883, 38.50 ,Materials and Supplies - Miscellaneous,"Wire brush, tube grease safety hooks"
30-Nov-20,Culture & Environment Services,Honey Brothers Ltd, 394.66 ,Materials and Supplies - Miscellaneous,"Eye hitches, slings, Teufelgar"
13-Nov-20,Culture & Environment Services,Http://Www.Hydro-X.Co., 655.34 ,GF_Contract Repair & Maintenance,Legionella testing kits
16-Nov-20,Culture & Environment Services,Ipswich Bc,-83.33 ,Licences & Other Fees,Refund for pavement license from Ipswich Central
24-Nov-20,Culture & Environment Services,J P Lennard Ltd, 233.78 ,Equipment / Furniture / Materials,woggle Trolley - Aqua
30-Oct-20,Culture & Environment Services,Jcb Insurance, 70.17 ,Materials and Supplies - Miscellaneous,JCB insurance
03-Nov-20,Culture & Environment Services,Kings, 8.33 ,Materials and Supplies - Miscellaneous,2 x Cylinder Keys cut
17-Nov-20,Culture & Environment Services,Kite On Line Terminal, 66.29 ,Equipment / Furniture / Materials,Packaging boxes for TIC clearout
13-Nov-20,Culture & Environment Services,Lumberjacks, 8.32 ,Miscellaneous Stock  - Purchases,Box of nails - SPROUGHTON SITE
19-Oct-20,Culture & Environment Services,Moonpig, 5.99 ,Stationery,REDACTED
04-Nov-20,Culture & Environment Services,Oakley Turf Farm, 648.00 ,Miscellaneous Stock  - Purchases,Turf for Tooks site
16-Oct-20,Culture & Environment Services,Paypal, 4.12 ,Computer Consumables and other Minor IT costs,Phone case and Protector
24-Sep-20,Culture & Environment Services,Paypal, 16.15 ,Equipment / Furniture / Materials,REDACTED
25-Sep-20,Culture & Environment Services,Paypal, 16.62 ,Equipment / Furniture / Materials,REDACTED
25-Sep-20,Culture & Environment Services,Paypal,-16.15 ,Equipment / Furniture / Materials,REDACTED
08-Oct-20,Culture & Environment Services,Paypal,-16.63 ,Equipment / Furniture / Materials,REDACTED
18-Nov-20,Culture & Environment Services,Pego, 33.33 ,Equipment / Furniture / Materials,music for fitness classes
02-Nov-20,Culture & Environment Services,Powertool World, 240.83 ,Equipment / Furniture / Materials,Battery tools for Chantry Park
26-Nov-20,Culture & Environment Services,Rs Components, 19.00 ,Equipment / Furniture / Materials,wave machine air valves
02-Nov-20,Culture & Environment Services,Ryman, 22.38 ,Stationery,Laminating pouches and marker pens
12-Oct-20,Culture & Environment Services,Sainsburys S/mkt, 0.92 ,Materials and Supplies - Miscellaneous,Sundries for Waste Services
16-Oct-20,Culture & Environment Services,Sainsburys S/mkt, 5.71 ,Materials and Supplies - Miscellaneous,Sundries for Waste Services
06-Nov-20,Culture & Environment Services,Sainsburys S/mkt, 5.92 ,Materials and Supplies - Miscellaneous,Sundries for Waste Services
20-Nov-20,Culture & Environment Services,Sainsburys S/mkt, 10.50 ,Materials and Supplies - Miscellaneous,Sundries for Waste Services
02-Nov-20,Culture & Environment Services,Sainsburys S/mkts, 1.83 ,Materials and Supplies - Miscellaneous,Sundries for Waste Services
03-Nov-20,Culture & Environment Services,Sainsburys S/mkts, 5.83 ,Materials and Supplies - Miscellaneous,Batteries for Chantry Hub
11-Nov-20,Culture & Environment Services,Sainsburys S/mkts, 0.92 ,Materials and Supplies - Miscellaneous,Sundries for Waste Services
06-Nov-20,Culture & Environment Services,Screwfix Direct, 109.21 ,Equipment / Furniture / Materials,COVID items
06-Nov-20,Culture & Environment Services,Screwfix Direct, 51.86 ,Equipment / Furniture / Materials,pressure washer parts and bits
13-Nov-20,Culture & Environment Services,Screwfix Direct, 233.32 ,Equipment / Furniture / Materials,Replacement strimmer
17-Nov-20,Culture & Environment Services,Screwfix Direct, 36.63 ,Equipment / Furniture / Materials,Sack-barrow
25-Nov-20,Culture & Environment Services,Screwfix Direct, 96.42 ,Equipment / Furniture / Materials,Items for play area
11-Nov-20,Culture & Environment Services,Screwfix Direct, 34.98 ,Materials and Supplies - Miscellaneous,Brush Cutter Harness x 2
04-Nov-20,Culture & Environment Services,Screwfix Direct, 6.27 ,Miscellaneous Stock  - Purchases,Cable Ties - LANDSCAPE TEAM
16-Nov-20,Culture & Environment Services,Screwfix Direct, 3.32 ,Miscellaneous Stock  - Purchases,Braided builders Line - SPROUGHTON SITE
25-Nov-20,Culture & Environment Services,Screwfix Direct, 1.07 ,Miscellaneous Stock  - Purchases,Bucket - LANDSCAPE TEAM
12-Nov-20,Culture & Environment Services,Sovereign Turf Ltd," 1,045.00 ",Miscellaneous Stock  - Purchases,Turf - LANDSCAPE TEAM
25-Nov-20,Culture & Environment Services,Sovereign Turf Ltd, 137.50 ,Miscellaneous Stock  - Purchases,Turf for Tooks contract
06-Nov-20,Culture & Environment Services,Suffolk County Council, 55.00 ,Equipment / Furniture / Materials,public health death certificates
04-Nov-20,Culture & Environment Services,Suffolk County Council, 58.33 ,Miscellaneous Expenses,Highways Licence for a Cherry Picker at the Town Hall
03-Nov-20,Culture & Environment Services,Suffolk Fastener (Ipsw, 12.39 ,Equipment / Furniture / Materials,Various nuts/bolts for installation -PLAY AREA INSPECTOR
16-Nov-20,Culture & Environment Services,The Range, 14.16 ,Materials and Supplies - Miscellaneous,Fence treatment - WHITTON
05-Nov-20,Culture & Environment Services,The Windscreen Co, 222.00 ,Direct Transport Costs,DRIVERS DOOR WINDOW SMASHED GN69 WTE
11-Nov-20,Culture & Environment Services,The Windscreen Co, 222.00 ,Direct Transport Costs,REPLACEMENT WINDSCREEN FOR AV11 XCR
18-Nov-20,Culture & Environment Services,The Windscreen Co, 48.00 ,Direct Transport Costs,CHIP REPAIR FOR AX69 GKP
20-Nov-20,Culture & Environment Services,The Windscreen Co, 48.00 ,Parks Vehicle Costs,CHIP REPAIR FOR LD66 KCO
19-Oct-20,Culture & Environment Services,Thurlow Nunn Standen L, 23.33 ,Equipment - Repairs,Leaf blower repairs
13-Nov-20,Culture & Environment Services,Timpson Ltd, 25.83 ,Equipment / Furniture / Materials,keys cut
12-Nov-20,Culture & Environment Services,Timpson Ltd, 14.58 ,Materials and Supplies - Miscellaneous,Keys Cut - PARK PATROL
12-Nov-20,Culture & Environment Services,Toolstation Ltd, 10.82 ,Equipment / Furniture / Materials,Grinding Discs - PLAY AREA INSPECTOR
02-Nov-20,Culture & Environment Services,Toolstop, 475.00 ,Equipment / Furniture / Materials,Blowers for the park
12-Nov-20,Culture & Environment Services,Tvlicensing.Co.Uk, 157.50 ,Licences & Other Fees,Purchase of TV Licence for Regent Theatre
09-Nov-20,Culture & Environment Services,Victoria Nurseries, 45.33 ,Materials and Supplies - Miscellaneous,turfing of war graves
13-Oct-20,Culture & Environment Services,W J Green Limited, 215.82 ,Materials and Supplies - Miscellaneous,Arb materials and supplies
27-Nov-20,Culture & Environment Services,W J Green Limited, 244.45 ,Materials and Supplies - Miscellaneous,Arb gear - strop & holster
06-Nov-20,Culture & Environment Services,Wickes Building, 67.50 ,Equipment / Furniture / Materials,pressure washer parts
03-Nov-20,Culture & Environment Services,Wickes Ipswich, 6.67 ,Equipment / Furniture / Materials,Mixer tap connector - PLAY AREA INSPECTOR
10-Nov-20,Culture & Environment Services,Wickes Ipswich, 40.00 ,Equipment / Furniture / Materials,Rakes for leaf clearing
06-Nov-20,Culture & Environment Services,Wickes Ipswich, 166.91 ,Materials and Supplies - Miscellaneous,grave digging equipment
11-Nov-20,Culture & Environment Services,Wickes Ipswich, 7.48 ,Materials and Supplies - Miscellaneous,Light bulbs
13-Nov-20,Culture & Environment Services,Wickes Ipswich, 6.00 ,Materials and Supplies - Miscellaneous,Material for bench Install - CHANTRY HUB
20-Nov-20,Culture & Environment Services,Wickes Ipswich, 8.71 ,Miscellaneous Stock  - Purchases,Materials for Pathway @Grimwade St - Landscape Team
06-Nov-20,Culture & Environment Services,Www.Banneruk.Com, 1.95 ,Stationery,Stationery
30-Oct-20,Culture & Environment Services,Www.Bunzlcleaningsuppl, 45.33 ,Cleaning Supplies,Toilet cleaner and hand soap
27-Nov-20,Culture & Environment Services,Www.Bunzlcleaningsuppl, 40.25 ,Equipment / Furniture / Materials,Gloves medium
19-Nov-20,Culture & Environment Services,Www.Eurekadirect.Co.Uk, 43.55 ,Materials and Supplies - Miscellaneous,First aid supplies
30-Nov-20,Culture & Environment Services,Www.Licencecheck.Co.Uk, 840.00 ,Direct Transport Costs,200 credits purchased for licence checks
11-Nov-20,Culture & Environment Services,Www.Servochem.Uk.Com, 146.90 ,Cleaning Supplies,deep clean & pool safe chems
12-Nov-20,Culture & Environment Services,Www.Swimming.Org, 68.00 ,Training Expenses,Pool Plant Revalidation
02-Nov-20,Culture & Environment Services,Www.Toolstation.Com, 22.05 ,Cleaning Supplies,Plastic shoe covers
24-Nov-20,Development,A C Leigh, 110.00 ,Premises Costs - Miscellaneous,key cards
09-Apr-20,Development,Geodesys, 90.83 ,Capital Expenditure,REDACTED
22-Apr-20,Development,Geodesys, 337.00 ,Capital Expenditure,info land @ whitton hamlet
13-Nov-20,Development,Geodesys, 90.80 ,Capital Expenditure,REDACTED
26-Nov-20,Development,Geodesys, 90.80 ,Capital Expenditure,REDACTED
01-Apr-20,Development,Horizon Environment Sr, 49.75 ,Premises Costs - Miscellaneous,pest control
13-Nov-20,Development,Ncx*utilitysearch, 72.68 ,Capital Expenditure,REDACTED
25-Nov-20,Development,Ncx*utilitysearch, 109.02 ,Capital Expenditure,REDACTED
09-Apr-20,Development,Nochex.*utilitysearch, 100.17 ,Capital Expenditure,REDACTED
02-Nov-20,Development,Replacement Keys Ltd, 7.46 ,Equipment / Furniture / Materials,replacement keys for stage
11-Nov-20,Development,Screwfix Direct, 83.25 ,Equipment / Furniture / Materials,Hazard tape - recovery work
11-Nov-20,Development,The Workplace Depot, 19.03 ,Equipment / Furniture / Materials,Barrier for CSC - workplace recovery
16-Nov-20,Development,"Www,eastsuffolk.Gov.Uk", 192.00 ,Non Contracted_Professional Services,Partnership Inspections 
19-Nov-20,Development,"Www,eastsuffolk.Gov.Uk", 192.00 ,Non Contracted_Professional Services,Partnership Inspections 
09-Nov-20,Development,Www.Banneruk.Com, 11.27 ,Stationery,Mousemat with support (for planner)
11-Nov-20,Development,Www.Ciob.Org.Uk, 253.00 ,Non Contracted_Professional Services,CIOB membership 
19-Nov-20,Development,Www.Latitudemaps.Co.Uk, 22.00 ,Publications - Purchase,Latitude Map (Planning and Development)
10-Apr-20,Development,Www.Mailcoms.Co.Uk, 69.95 ,Postage Costs,annual update
12-Nov-20,Finance & Revenues,Amazon.Co.Uk, 45.83 ,Telecommunication Costs - Business Phones,Analogue Telephone for ESC
25-Nov-20,Finance & Revenues,Amzn Digital 35312477661, 107.99 ,Equipment / Furniture / Materials,Office 2019 Digital Download
04-Nov-20,Finance & Revenues,Amznmktplace, 27.98 ,Computer Equipment - Purchase,2 x Ergonomic MSe - ICT Stock
09-Nov-20,Finance & Revenues,Amznmktplace, 9.84 ,Computer Equipment - Purchase,Display adapter Microsoft Surface
26-Nov-20,Finance & Revenues,Amznmktplace, 17.07 ,Computer Software - Maintenance,Wireless mouse 
25-Nov-20,Finance & Revenues,Cbt Nuggets Llc, 45.70 ,Training Expenses,ICT Training
13-Nov-20,Finance & Revenues,Comms Express Ltd, 92.50 ,Computer Equipment - Purchase,Stock cables
23-Nov-20,Finance & Revenues,Ebuyer (Uk) Ltd," 2,087.46 ",Capital Expenditure,Local Plan PC
04-Sep-20,Finance & Revenues,Kaplan Financial Ltd, 296.67 ,Training Expenses,Kaplan Distance Learning
09-Nov-20,Finance & Revenues,Msft * E0200cigec, 43.10 ,Computer Equipment - Purchase,O365 E5 licence (Local plan)
18-Nov-20,Finance & Revenues,Paypal, 12.98 ,Advertising/Publicity,Domain registration
05-Nov-20,Finance & Revenues,Paypal, 23.98 ,Computer Software - Purchase,Domain registration
09-Nov-20,Finance & Revenues,"Probrand Ltd.,", 308.71 ,Computer Equipment - Purchase,4 x Targus Docks
23-Nov-20,Finance & Revenues,"Probrand Ltd.,", 56.14 ,Computer Equipment - Purchase,2 x Microsoft Wireless KB/Mse sets ICT Stock
12-Nov-20,Finance & Revenues,"Securitymetrics, Inc.", 420.00 ,Non Contracted_Professional Services,Subscription renewal
06-Nov-20,Finance & Revenues,Service Fees - Fraedom Pty Ltd, 383.15 ,Computer Software - Maintenance,Fraedom Card Fees 1/10/20 tom 31/10/20
30-Oct-20,Finance & Revenues,Smartsheet, 72.54 ,Computer Software - Purchase,Smartsheet Subscription
30-Oct-20,Finance & Revenues,Smartsheet, 72.54 ,Computer Software - Purchase,Smartsheet Subscription
30-Oct-20,Finance & Revenues,Smartsheet, 72.54 ,Computer Software - Purchase,Smartsheet Subscription
30-Oct-20,Finance & Revenues,Smartsheet, 72.54 ,Computer Software - Purchase,Smartsheet Subscription
30-Oct-20,Finance & Revenues,Smartsheet, 72.54 ,Computer Software - Purchase,Smartsheet Subscription
30-Oct-20,Finance & Revenues,Smartsheet, 72.54 ,Computer Software - Purchase,Smartsheet Subscription
30-Oct-20,Finance & Revenues,Smartsheet, 72.54 ,Computer Software - Purchase,Smartsheet Subscription
30-Oct-20,Finance & Revenues,Smartsheet, 72.54 ,Computer Software - Purchase,Smartsheet Subscription
30-Oct-20,Finance & Revenues,Smartsheet, 72.54 ,Computer Software - Purchase,Smartsheet Subscription
30-Oct-20,Finance & Revenues,Smartsheet, 72.54 ,Computer Software - Purchase,Smartsheet Subscription
30-Oct-20,Finance & Revenues,Smartsheet, 72.54 ,Computer Software - Purchase,Smartsheet Subscription
30-Oct-20,Finance & Revenues,Smartsheet, 72.54 ,Computer Software - Purchase,Smartsheet Subscription
30-Oct-20,Finance & Revenues,Smartsheet, 72.54 ,Computer Software - Purchase,Smartsheet Subscription
30-Oct-20,Finance & Revenues,Smartsheet, 72.54 ,Computer Software - Purchase,Smartsheet Subscription
30-Oct-20,Finance & Revenues,Smartsheet, 72.54 ,Computer Software - Purchase,Smartsheet Subscription
30-Oct-20,Finance & Revenues,Smartsheet, 72.58 ,Computer Software - Purchase,Smartsheet Subscription
07-Oct-20,Finance & Revenues,Whitepaper.Co.Uk, 99.00 ,Training Expenses,Training - Awarding Public Contracts
24-Nov-20,Finance & Revenues,Www.Aat-Org.Uk, 84.17 ,Subscriptions - Service Related,AAT fees
30-Nov-20,Finance & Revenues,Www.Cips.Org, 155.83 ,Employee Expenses,CIPs membership
30-Nov-20,Finance & Revenues,Www.Cips.Org, 155.83 ,Employee Expenses,CIPs membership
04-Nov-20,Finance & Revenues,Www.Patlabel.Co.Uk, 52.56 ,Equipment / Furniture / Materials,Asset Tags - ICT
20-Nov-20,Finance & Revenues,Zoom.Us 888-799-9666, 9.99 ,Computer Software - Purchase,LocalPlan monthly Zoom licence
19-Nov-20,Housing & Community Services,Amazon.Co.Uk, 68.55 ,Publications - Purchase,College books
05-Nov-20,Housing & Community Services,Amznmktplace, 29.97 ,Computer Equipment - Purchase,Led power switches
23-Nov-20,Housing & Community Services,Amznmktplace, 34.85 ,Computer Equipment - Purchase,Chair mat carpet protector
19-Nov-20,Housing & Community Services,Amznmktplace, 19.94 ,Equipment / Furniture / Materials,Dog treats for dog warden vans
20-Nov-20,Housing & Community Services,Amznmktplace, 78.25 ,Equipment / Furniture / Materials,Dog scanners for dog wardens
30-Nov-20,Housing & Community Services,Amznmktplace, 36.66 ,Miscellaneous Expenses,Holywells court roller blind office
25-Nov-20,Housing & Community Services,Amznmktplace, 44.48 ,Specific Campaigns / Projects expenditure,TV adaptor for RSI client
04-Nov-20,Housing & Community Services,Amznmktplace Amazon.Co.Uk, 103.87 ,Computer Equipment - Purchase,Keyboards/Mice
27-Nov-20,Housing & Community Services,Amznmktplace Amazon.Co.Uk, 12.20 ,Stationery,hand sanitizer
10-Nov-20,Housing & Community Services,Argos Ltd, 62.98 ,Specific Campaigns / Projects expenditure,Items for RSI client to occupy during lockdown access GTHC
10-Nov-20,Housing & Community Services,Argos Ltd, 149.99 ,Specific Campaigns / Projects expenditure,TV for RSI client ready to move in his home
19-Nov-20,Housing & Community Services,Argos Ltd, 99.98 ,Specific Campaigns / Projects expenditure,2xTablets for activities for HF clients
27-Nov-20,Housing & Community Services,Argos Ltd, 68.00 ,Specific Campaigns / Projects expenditure,Household goods for RSI client in new tenancy
02-Nov-20,Housing & Community Services,Cadent Gas, 789.60 ,Capital Expenditure,Gas installation 
25-Nov-20,Housing & Community Services,Cadent Gas, 624.00 ,Capital Expenditure,Gas installation 
18-Nov-20,Housing & Community Services,Campbellmil, 46.92 ,Equipment / Furniture / Materials,A Hines 1x 36v Bosch Battery
16-Nov-20,Housing & Community Services,Capita Gas Reg, 12.00 ,Employee Expenses,New Gas Safe card
13-Nov-20,Housing & Community Services,Cpw Locksmiths And Securi, 95.00 ,HRA Special Repairs & Maintenance,repair/replace/renew lock/keys to sheltered properties
16-Nov-20,Housing & Community Services,Cpw Locksmiths And Securi, 103.33 ,HRA Special Repairs & Maintenance,repair/replace/renew lock/keys to sheltered properties
17-Nov-20,Housing & Community Services,Cpw Locksmiths And Securi, 23.33 ,HRA Special Repairs & Maintenance,repair/replace/renew lock/keys to sheltered properties
17-Nov-20,Housing & Community Services,Cpw Locksmiths And Securi, 160.00 ,HRA Special Repairs & Maintenance,repair/replace/renew lock/keys to sheltered properties
16-Nov-20,Housing & Community Services,Eoe Co-Op, 50.00 ,Materials and Supplies - Miscellaneous,REDACTED
16-Nov-20,Housing & Community Services,Eoe Co-Op, 50.00 ,Materials and Supplies - Miscellaneous,REDACTED
25-Nov-20,Housing & Community Services,Eoe Co-Op, 25.00 ,Materials and Supplies - Miscellaneous,Voids Electric
30-Nov-20,Housing & Community Services,Eoe Co-Op, 20.00 ,Materials and Supplies - Miscellaneous,Voids Electric
23-Nov-20,Housing & Community Services,Gen Register Office, 14.00 ,Specific Campaigns / Projects expenditure,Adoption Cert for RSI client
18-Nov-20,Housing & Community Services,Housing Reviews, 280.00 ,Training Expenses,Training costs for housing options officer
09-Nov-20,Housing & Community Services,J2 Efax Plus Service, 11.00 ,Miscellaneous Expenses,eFax service for housing options
05-Nov-20,Housing & Community Services,Kings, 33.33 ,Equipment / Furniture / Materials,Keys for access to Elm Street store for all team.
10-Nov-20,Housing & Community Services,Mfg Stowmarket, 26.00 ,Equipment / Furniture / Materials,Fuel for small plant machinery 3x petrol cans worth
08-Sep-20,Housing & Community Services,One Stop 0857, 20.00 ,Materials and Supplies - Miscellaneous,Void Electric
11-Sep-20,Housing & Community Services,One Stop 0857, 20.00 ,Materials and Supplies - Miscellaneous,Void Electric
17-Sep-20,Housing & Community Services,One Stop 0857, 25.00 ,Materials and Supplies - Miscellaneous,Electric Void
18-Nov-20,Housing & Community Services,One Stop 0857, 20.00 ,Materials and Supplies - Miscellaneous,Voids Electric
30-Nov-20,Housing & Community Services,Post Office Counter, 2.04 ,Stationery,Recorded delivery Scheme TV licence renewal
09-Nov-20,Housing & Community Services,Premier Inn 44536100, 208.00 ,Services for Clients,B & B temp
11-Nov-20,Housing & Community Services,Premier Inn 44536100, 291.50 ,Services for Clients,temp LH
18-Nov-20,Housing & Community Services,Premier Inn 44536100, 245.50 ,Services for Clients,Temp LH
19-Nov-20,Housing & Community Services,Premier Inn 44536100,-245.50 ,Services for Clients,LH never used room
17-Nov-20,Housing & Community Services,Propertymark, 90.00 ,Miscellaneous Expenses,Membership
27-Nov-20,Housing & Community Services,Screwfix Direct, 7.98 ,Premises Costs - Miscellaneous,2x Deadlocks for toilets
16-Sep-20,Housing & Community Services,Southend County, 20.00 ,Legal Services & Fees,Gas warrant
20-Nov-20,Housing & Community Services,Southend County, 20.00 ,Legal Services & Fees,A warrant for gas
20-Nov-20,Housing & Community Services,Southend County, 20.00 ,Legal Services & Fees,Application for gas warrant
09-Nov-20,Housing & Community Services,Sportsdirect.Com, 33.32 ,Clothing / Uniform & Laundry,work trouser 
16-Nov-20,Housing & Community Services,Sportsdirect.Com,-29.16 ,Clothing / Uniform & Laundry,Refund from trousers 
25-Nov-20,Housing & Community Services,Suffolk County Council, 300.00 ,Capital Expenditure,Dropped Kerb
26-Nov-20,Housing & Community Services,Www.Banneruk.Com, 146.10 ,Premises Costs - Miscellaneous,Bankers Boxes
18-Nov-20,Housing & Community Services,Www.Banneruk.Com, 73.11 ,Stationery,Stationery
18-Nov-20,Housing & Community Services,Www.Labelsandtags.Co.U, 23.70 ,Materials and Supplies - Miscellaneous,3802151 Electrical Warning Labels
03-Nov-20,Housing & Community Services,Www.Speedyservices.Com, 24.08 ,Materials and Supplies - Miscellaneous,Chasing Machine Blades 380251
06-Nov-20,Housing & Community Services,Www.The Batteryshop.Co, 129.96 ,Equipment / Furniture / Materials,Batteries for machines as suggested by our Engineer
12-Nov-20,People & Governance,Amazon.Co.Uk, 11.80 ,Advertising/Publicity,Digital equipment - Christmas switch on film
21-Sep-20,People & Governance,Amazon.Co.Uk, 20.80 ,Computer Consumables and other Minor IT costs,2x 550 blk inks 
12-Nov-20,People & Governance,Amznmktplace, 115.76 ,Advertising/Publicity,Digital equipment - Christmas switch on film
27-Nov-20,People & Governance,Amznmktplace, 49.95 ,Miscellaneous Stock  - Purchases,A4 Laminating Pouches for the Print Room
16-Nov-20,People & Governance,Apple.Com/Bill, 0.99 ,Advertising/Publicity,App for iPad
25-Nov-20,People & Governance,Istock.Com, 137.00 ,Computer Consumables and other Minor IT costs,Image Credit for Design
13-Nov-20,People & Governance,Mailchimp, 523.45 ,Subscriptions - Service Related,Mailchimp
06-Nov-20,People & Governance,Parcel2go.Com Ltd, 8.95 ,Miscellaneous Stock  - Purchases,Courier Charge for sending Posting print work
27-Nov-20,People & Governance,Paypal, 150.00 ,Central Area Committee,Alexandra Ward Make A Difference grant purchase
14-Aug-20,People & Governance,Ryman, 28.49 ,Computer Consumables and other Minor IT costs, Canon 545/6 multi pack
17-Nov-20,People & Governance,"Sprout Social, Inc", 743.63 ,Subscriptions - Service Related,Sprout Subscription
03-Sep-20,People & Governance,Www.Banneruk.Com, 224.75 ,Computer Consumables and other Minor IT costs,Canon inks
04-Sep-20,People & Governance,Www.Banneruk.Com, 137.91 ,Computer Consumables and other Minor IT costs,HP950/951XL cmyk
04-Sep-20,People & Governance,Www.Banneruk.Com, 175.02 ,Computer Consumables and other Minor IT costs,Computer Consumables and other Minor IT costs
04-Sep-20,People & Governance,Www.Banneruk.Com, 82.12 ,Computer Consumables and other Minor IT costs,Computer Consumables and other Minor IT costs
29-Sep-20,People & Governance,Www.Banneruk.Com, 121.27 ,Computer Consumables and other Minor IT costs,Hp80A toner
18-Nov-20,People & Governance,Www.Banneruk.Com, 176.23 ,Computer Consumables and other Minor IT costs,"HP305XLCMYK, CLi551CMYK"
18-Nov-20,People & Governance,Www.Banneruk.Com, 132.10 ,Miscellaneous Stock  - Purchases,Envelopes and Laminating Pouches for Print Room use
03-Nov-20,People & Governance,Www.Paper.Co.Uk, 202.77 ,Miscellaneous Stock  - Purchases,A2 Split Back Stickers for Print Room
10-Nov-20,People & Governance,Www.Paper.Co.Uk, 81.67 ,Miscellaneous Stock  - Purchases,Mixed paper for the print room use
19-Nov-20,People & Governance,Www.Paper.Co.Uk, 472.03 ,Miscellaneous Stock  - Purchases,Various Paper stocks for the print room use
26-Nov-20,People & Governance,Www.Paper.Co.Uk, 119.07 ,Miscellaneous Stock  - Purchases,Gloss paper for Covid leaflets printed in the print room
16-Nov-20,People & Governance,Zoom.Gbp, 23.98 ,Specific Campaigns / Projects expenditure,Zoom subscription for Council Meetings
